[Event "CCT Julius Baer-D1 2024"]
[Site "Online"]
[Date "2024.09.27"]
[Round "1"]
[White "Carlsen, Magnus"]
[Black "Nepomniachtchi, Ian"]
[Result "1/2-1/2"]
[ECO "A28"]
[WhiteElo "2832"]
[BlackElo "2755"]
[Annotator "TA"]
[PlyCount "82"]
[EventDate "2024.09.25"]
[EventType "swiss"]
[EventCountry "NET"]
[SourceTitle "playchess.com"]
[Source "ChessBase"]
[SourceQuality "1"]
[TimeControl "600+2"]

{[%evp 9,82,-7,-9,-8,-6,-6,0,-6,-6,-24,0,0,0,0,0,0,5,-17,-13,-17,-13,-49,-46,-73,-81,-78,-78,-106,-91,-141,0,0,0,0,0,0,-25,-43,8,18,40,43,45,50,58,0,0,0,0,0,0,0,0,0,0,0,0,0,0,0,0,0,0,0,0,0,0,0,0,0,0,0,0,0,0]} 1. c4 {[%emt 0:00:06]} e5 {[%emt 0:00:08]} 2. Nc3 {[%emt 0:00:16]} Nf6 {[%emt 0:00:01]} 3. Nf3 {[%emt 0:00:02]} Nc6 {[%emt 0:00:02]} 4. a3 {[%emt 0:00:01]} g6 {[%emt 0:00:13]} 5. e4 {[%emt 0:00:17]} Bg7 {[%emt 0:00:05]} 6. d3 {[%emt 0:00:02]} d6 {[%emt 0:00:05]} 7. g3 {[%emt 0:00:20]} Bg4 {[%emt 0:00:06]} 8. Bg2 {[%emt 0:00:02]} Nd7 {[%emt 0:00:10]} 9. Be3 {[%emt 0:00:08]} Nc5 {[%emt 0:00:07]} 10. b4 {[%emt 0:00:22]} Ne6 {[%emt 0:00:01]} 11. h3 {[%emt 0:00:02]} Bxf3 {[%emt 0:00:01]} 12. Bxf3 {[%emt 0:00:00]} a5 {[%emt 0:00:03]} 13. Rb1 {[%emt 0:00:10]} axb4 {[%emt 0:00:03]} 14. axb4 {[%emt 0:00:00]} Ncd4 {[%emt 0:00:01]} 15. Bg4 {[%emt 0:00:18]} O-O {[%emt 0:00:08]} 16. Bxe6 {[%emt 0:00:06]} Nxe6 {[%emt 0:00:04]} 17. h4 {[%emt 0:00:22][%cal Bh3h4,Bh4h5,Bh5g6][%mdl 32]} f5 {[%emt 0:00:01]} 18. h5 {[%emt 0:00:09]} f4 {[%emt 0:00:16]} 19. Qg4 {[%emt 0:00:21] [#]} ({White should play} 19. Bc1) 19... fxe3 {[%emt 0:00:51]} (19... Qe8 $1 $17 20. Bc1 gxh5) 20. Qxe6+ $11 {[%emt 0:00:02]} Kh8 {[%emt 0:00:01]} 21. hxg6 {[%emt 0:01:13][%csl Gg6][%cal Rh1h7]} h6 {[%emt 0:00:02] ...Qg5 would now be deadly.} 22. O-O {[%emt 0:00:34]} (22. fxe3 Qg5 23. Ke2 Qxg3 $17) 22... Qg5 {[%emt 0:00:27] Prevents Qg4.} 23. Kg2 {[%emt 0:00:32]} Rf6 {[%emt 0:01:35]} (23... exf2 $15 24. Nd5 (24. Rxf2 $2 {too greedy.} Rxf2+ 25. Kxf2 Qd2+ 26. Kg1 Qxc3 $19) 24... c6) 24. Qh3 $1 {[%emt 0:00:07] Strongly threatening Nd5. Dancing on a razor blade.} Raf8 {[%emt 0:00:01]} 25. Rb2 {[%emt 0:00:23]} ({Much weaker is} 25. fxe3 Qxe3 26. Rxf6 Rxf6 $11) 25... Rxg6 {[%emt 0:00:49]} 26. Nd5 {[%emt 0:01:19]} exf2 {[%emt 0:00:03] [#] aiming for ...c6.} 27. Nxc7 {[%emt 0:00:51]} ({White should try} 27. Re2 $14) 27... Qe3 $1 {[%emt 0:00:57] The position is equal.} 28. Rbxf2 {[%emt 0:00:02]} Rxf2+ {[%emt 0:00:02]} 29. Rxf2 {[%emt 0:00:01]} Qxd3 {[%emt 0:00:00]} 30. Qh4 {[%emt 0:00:07]} Qxc4 {[%emt 0:00:06]} 31. Nd5 {[%emt 0:00:01]} Rg5 {[%emt 0:00:26]} 32. Nf6 {[%emt 0:01:17]} Qd3 {[%emt 0:00:35]} 33. Nd5 {[%emt 0:00:11]} Kh7 {[%emt 0:00:10]} 34. Rf7 {[%emt 0:00:12]} b5 {[%emt 0:00:54]} 35. Rf3 {[%emt 0:00:02]} Qd1 {[%emt 0:00:23]} 36. Rf1 {[%emt 0:00:06]} Qc2+ {[%emt 0:00:13]} 37. Rf2 {[%emt 0:00:01] Active counter play!} Qc4 {[%emt 0:00:09]} 38. Kh2 {[%emt 0:00:01]} Qd3 {[%emt 0:00:08]} 39. Kg2 {[%emt 0:00:03]} Qc4 {[%emt 0:00:23]} 40. Kh2 {[%emt 0:00:05]} Qd3 {[%emt 0:00:01]} 41. Kg2 {[%emt 0:00:02]} Qc4 {[%emt 0:00:00] Weighted Error Value: White=0.09 (flawless) /Black=0.08 (flawless) .  Mistake:       	White=2     	Black=2      Inaccurate:     	White=3     	---        OK:         	White=17    	Black=11     Best:        	White=1     	Black=4      Strong:       	White=1     	Black=1} 1/2-1/2

[Event "CCT Julius Baer-D1 2024"]
[Site "Online"]
[Date "2024.09.27"]
[Round "1"]
[White "Erigaisi Arjun"]
[Black "Grischuk, Alexander"]
[Result "0-1"]
[ECO "D35"]
[WhiteElo "2778"]
[BlackElo "2689"]
[Annotator "TA"]
[PlyCount "112"]
[EventDate "2024.09.25"]
[EventType "swiss"]
[EventCountry "NET"]
[SourceTitle "playchess.com"]
[Source "ChessBase"]
[SourceQuality "1"]
[TimeControl "600+2"]

{[%evp 53,112,79,85,37,53,46,34,0,81,72,95,84,83,38,55,0,89,0,0,0,0,0,0,0,0,0,0,0,0,0,0,-64,0,0,0,-8,-8,-1937,-1672,-1649,0,-8,-8,-175,-235,-1107,-1025,-2627,-2070,-5859,-5501,-29957,-4564,-1174,-430,-29975,-29976,-29986,-29987,-29987,-29988]} 1. d4 {[%emt 0:00:02]} d5 {[%emt 0:00:03]} 2. c4 {[%emt 0:00:02]} e6 {[%emt 0:00:01]} 3. Nc3 {[%emt 0:00:01]} Be7 {[%emt 0:00:01]} 4. cxd5 {[%emt 0:00:01]} exd5 {[%emt 0:00:01]} 5. Bf4 {[%emt 0:00:00]} Nf6 {[%emt 0:00:01]} 6. e3 {[%emt 0:00:05]} Bf5 {[%emt 0:00:01]} 7. Nge2 {[%emt 0:00:17] D35: Queen's Gambit Declined: Exchange Variation.} O-O {[%emt 0:00:03]} 8. Ng3 {[%emt 0:00:04]} Bg6 {[%emt 0:00:02]} 9. h4 {[%emt 0:00:04]} h6 {[%emt 0:00:01]} 10. h5 {[%emt 0:00:04]} Bh7 {[%emt 0:00:02]} 11. Bd3 {[%emt 0:00:00]} Bxd3 {[%emt 0:00:29]} 12. Qxd3 {[%emt 0:00:00]} Bd6 {[%emt 0:00:01]} 13. Bxd6 {[%emt 0:00:26]} Qxd6 {[%emt 0:00:00]} 14. Nf5 {[%emt 0:00:01]} Qe6 {[%emt 0:00:04]} 15. f3 $146 {[%emt 0:00:27]} ({Predecessor:} 15. Rg1 Na6 16. a3 Rad8 17. g4 c5 18. O-O-O c4 19. Qc2 Kh8 20. f3 Nc7 21. g5 {1-0 Groot,P (2077)-Stepan,J (2110) EU-chT Cup prel email 2015 [4]}) 15... Nc6 {[%emt 0:00:04]} 16. g4 {[%emt 0:00:12]} Ne7 {[%emt 0:01:19]} 17. O-O-O {[%emt 0:00:04]} Rfe8 {[%emt 0:00:02]} 18. e4 {[%emt 0:01:46]} dxe4 {[%emt 0:00:24]} 19. fxe4 {[%emt 0:00:00]} Rad8 {[%emt 0:02:05]} 20. Qf3 {[%emt 0:00:01]} Nh7 {[%emt 0:00:39]} 21. Qf4 {[%emt 0:00:22]} c6 {[%emt 0:00:29]} 22. Rhe1 {[%emt 0:00:27]} Ng5 {[%emt 0:01:01]} 23. d5 {[%emt 0:00:01]} cxd5 {[%emt 0:00:08]} 24. exd5 {[%emt 0:00:02]} Qd7 {[%emt 0:00:01]} 25. Rxe7 {[%emt 0:00:32]} Rxe7 {[%emt 0:00:00]} 26. Qd4 {[%emt 0:00:01]} f6 {[%emt 0:00:03]} 27. Nxe7+ {[%emt 0:00:01]} Qxe7 {[%emt 0:00:01]} 28. d6 {[%emt 0:00:18]} (28. Qxa7 $16 Nf7 29. Kb1) 28... Qd7 $14 {[%emt 0:01:20]} 29. Qxa7 {[%emt 0:00:45]} Nf7 {[%emt 0:00:03]} 30. Kb1 {[%emt 0:00:27]} Nxd6 {[%emt 0:00:36]} (30... Qc6 $11) 31. Qc5 $1 $16 {[%emt 0:00:51]} Qe6 {[%emt 0:00:20] [#]} 32. a4 $1 {[%emt 0:00:23]} Kh7 {[%emt 0:00:16]} 33. Qb6 {[%emt 0:00:42]} Rd7 {[%emt 0:00:13]} 34. a5 {[%emt 0:00:37]} (34. Rd5 $14 Kh8 (34... Qxg4 35. Rxd6 Qxh5 36. Re6 $16) 35. a5) 34... Kh8 {[%emt 0:00:17]} (34... Qxg4 $1 $11 35. Rxd6 Qf5+ 36. Ka2 (36. Kc1 $2 Qf4+ 37. Kc2 Qxd6 $19) 36... Rxd6 37. Qxd6 Qxa5+ 38. Kb1 Qxh5) 35. Rd4 {[%emt 0:00:39]} (35. Qc5 $16 Ne8 36. Rxd7 Qxd7 37. b4) 35... f5 $1 $11 {[%emt 0:00:19]} 36. gxf5 {[%emt 0:00:28]} Qxf5+ {[%emt 0:00:00]} 37. Ka2 {[%emt 0:00:00]} Nc8 {[%emt 0:00:30]} 38. Qb5 {[%emt 0:00:01]} Qxb5 {[%emt 0:00:04]} 39. Nxb5 {[%emt 0:00:01]} Rxd4 {[%emt 0:00:02]} 40. Nxd4 {[%emt 0:00:00]} g6 {[%emt 0:00:04]} 41. Kb3 {[%emt 0:00:31]} gxh5 {[%emt 0:00:04]} 42. Kc4 {[%emt 0:00:00]} (42. Nf3 $11) 42... Kg7 {[%emt 0:00:04]} ({Better is} 42... h4 $15 43. Nf3 h3) 43. b4 $11 {[%emt 0:00:20]} Kf6 {[%emt 0:00:01]} 44. Kd5 {[%emt 0:00:03]} h4 {[%emt 0:00:04]} 45. b5 $2 {[%emt 0:00:09][%mdl 8192]} (45. Ke4 $11) 45... h3 $19 {[%emt 0:00:01]} 46. Nf3 {[%emt 0:00:00]} Ke7 $2 {[%emt 0:00:03]} (46... Kf5 $19 {And now ...Kf4 would win.} 47. Nh2 Kf4) 47. Kc5 {[%emt 0:00:07]} Kd7 {[%emt 0:00:02]} 48. a6 $2 {[%emt 0:00:05] [#]} (48. Nh2 $11 {and White is okay.}) 48... b6+ $1 $19 {[%emt 0:00:03]} 49. Kc4 $2 {[%emt 0:00:06]} (49. Kd5) 49... Kc7 {[%emt 0:00:02]} 50. Kb4 {[%emt 0:00:02]} Nd6 {[%emt 0:00:01]} 51. Nh2 {[%emt 0:00:01]} h5 {[%emt 0:00:02]} 52. Ka4 {[%emt 0:00:02]} Ne4 {[%emt 0:00:02]} (52... Nf5 $142 53. Kb4 Ne3 54. Kc3 Ng4 55. Nf1 h2 56. Ng3 Nf2 57. Kb3 Kb8 (57... h1=Q 58. Nxh1 Nxh1 59. Kc2 h4 60. Kd3 h3 61. Ke3 Ng3 62. Kf3 h2 63. Kg4 Ne4 64. Kf4 h1=Q 65. a7 Kb7 66. a8=R Kxa8 67. Ke5 Nc5 68. Kf4 Qe4+ 69. Kg5 Qf3 70. Kh6 Qg2 71. Kh5 Qg7 72. Kh4 Ne4 73. Kh5 Qg5#) (57... h1=B $2 58. Nxh5 Ne4 59. Nf4 $19) (57... h1=R $2 58. Ne2 $19) (57... h4 $2 58. Ne2 $19) 58. Kb2 h4 (58... h1=R $2 59. Nf5 $19) 59. Nf5 h1=Q (59... h1=R 60. Nxh4 Rxh4 61. Kc2 Ne4 62. Kb3 Nd6 63. Kc3 Nxb5+ 64. Kd3 Ka7 65. Kd2 Rc4 66. Ke3 Nd6 67. Ke2 b5 68. Kf3 b4 69. Kg3 b3 70. Kh2 b2 71. Kh3 b1=Q 72. Kg2 Qb3 73. Kg1 Rc2 74. Kh1 Qb1#) 60. Nd4 Qf1 (60... Nd1+ {gets mated.} 61. Kc1 Qe4 62. Nb3 h3 63. Nd2 Qe3 64. Kc2 Qc3+ 65. Kxd1 h2 66. Ke2 h1=Q 67. a7+ Kxa7 68. Kf2 Qh2+ 69. Kf1 Qc1#) 61. Nc6+ Ka8 (61... Kc7 62. Nb4 h3 63. Nd5+ Kb8 64. Nxb6 Qxb5+ 65. Kc2 Qxb6 66. Kc1 h2 67. Kd2 h1=Q 68. a7+ Kxa7 69. Kc2 Qd1+ 70. Kc3 Qbd4#) 62. Ne5 Qxb5+ 63. Kc2 Qxe5 (63... Qe2+ {leads to mate.} 64. Kb3 Qxe5 65. Kc2 h3 66. Kd2 h2 67. Kc2 h1=Q 68. Kb3 Qb1+ 69. Kc4 Qc5#) 64. Kb3 h3 65. Kb4 h2 66. Kb3 h1=Q (66... h1=R 67. Kc2 Qb5 68. Kc3 Rb1 69. Kd4 Qc5#) 67. Ka4 Qb2 68. a7 Qh4#) 53. Kb4 $19 {[%emt 0:00:00]} Nf6 {[%emt 0:00:01]} (53... Kb8 $142 {( -> ...Nf6)} 54. Kc4 Ka7) 54. Nf3 {[%emt 0:00:02]} (54. Kc3 $19) 54... Ng4 {[%emt 0:00:01]} 55. Nd4 {[%emt 0:00:02]} h2 {[%emt 0:00:03]} 56. Ne6+ {[%emt 0:00:01]} Kb8 {[%emt 0:00:01]} 0-1

[Event "CCT Julius Baer-D1 2024"]
[Site "Online"]
[Date "2024.09.27"]
[Round "1"]
[White "Firouzja, Alireza"]
[Black "Fedoseev, Vladimir"]
[Result "0-1"]
[ECO "D20"]
[WhiteElo "2767"]
[BlackElo "2692"]
[Annotator "RC"]
[PlyCount "104"]
[EventDate "2024.09.25"]
[EventType "swiss"]
[EventCountry "NET"]
[SourceTitle "playchess.com"]
[Source "ChessBase"]
[SourceQuality "1"]
[TimeControl "600+2"]

1. d4 {[%emt 0:00:02]} d5 {[%emt 0:00:03]} 2. c4 {[%emt 0:00:02]} e6 {[%emt 0:00:00]} 3. Nc3 {[%emt 0:00:01]} dxc4 {[%emt 0:00:01]} 4. e3 {[%emt 0:00:41]} a6 {[%emt 0:00:02]} 5. Bxc4 {[%emt 0:00:18]} b5 {[%emt 0:00:01]} 6. Be2 {[%emt 0:00:02]} Nf6 {[%emt 0:00:02]} 7. Bf3 {[%emt 0:00:25]} Ra7 {[%emt 0:00:01]} 8. Nge2 {[%emt 0:00:01]} Bb7 {[%emt 0:00:47]} 9. Ng3 {[%emt 0:01:36]} c5 {[%emt 0:00:08]} 10. O-O {[%emt 0:00:05]} Nbd7 {[%emt 0:01:53]} 11. Bxb7 {[%emt 0:00:57]} Rxb7 {[%emt 0:00:02]} 12. Qf3 {[%emt 0:00:00]} Qc8 {[%emt 0:00:19]} 13. Bd2 {[%emt 0:00:25]} Be7 {[%emt 0:00:22]} 14. Rfc1 {[%emt 0:00:10]} O-O {[%emt 0:01:03]} 15. dxc5 {[%emt 0:00:54]} Ne5 {[%emt 0:00:11]} 16. Qe2 {[%emt 0:00:01]} Qxc5 {[%emt 0:00:04]} 17. a4 {[%emt 0:00:04]} Qc4 {[%emt 0:00:21]} 18. axb5 {[%emt 0:00:08]} axb5 {[%emt 0:00:03]} 19. Nd1 {[%emt 0:02:28]} Qxe2 {[%emt 0:00:28]} 20. Nxe2 {[%emt 0:00:01]} Ne4 {[%emt 0:00:01]} 21. Ba5 {[%emt 0:00:15]} Nc5 {[%emt 0:00:17]} 22. Nd4 {[%emt 0:00:09]} b4 {[%emt 0:00:22]} 23. Kf1 {[%emt 0:01:18]} Ra8 {[%emt 0:00:21]} 24. f4 {[%emt 0:00:22]} Ned3 {[%emt 0:00:16]} 25. Rcb1 {[%emt 0:00:08]} Bf6 {[%emt 0:00:11]} 26. Bxb4 {[%emt 0:00:07]} Rd8 {[%emt 0:00:14]} 27. Bc3 {[%emt 0:00:02]} Bxd4 {[%emt 0:00:05]} 28. exd4 {[%emt 0:00:09]} Nb3 {[%emt 0:00:01]} 29. Ra3 {[%emt 0:00:04]} Nxf4 {[%emt 0:00:03]} 30. Ne3 {[%emt 0:00:01]} h5 {[%emt 0:00:20]} 31. Rd1 {[%emt 0:00:01]} h4 {[%emt 0:00:18]} 32. g3 {[%emt 0:00:01]} hxg3 {[%emt 0:00:01]} 33. hxg3 {[%emt 0:00:00]} Nh5 {[%emt 0:00:00]} 34. g4 {[%emt 0:00:03]} Nf6 {[%emt 0:00:11]} 35. Ke2 {[%emt 0:00:02]} Rb5 {[%emt 0:00:08]} 36. Kd3 {[%emt 0:00:08]} Rdb8 {[%emt 0:00:20]} 37. Kc2 {[%emt 0:00:01]} Ne4 {[%emt 0:00:07]} 38. Nc4 {[%emt 0:00:01]} f6 {[%emt 0:00:33]} 39. Re1 {[%emt 0:00:03]} f5 {[%emt 0:00:01]} 40. gxf5 {[%emt 0:00:01]} exf5 {[%emt 0:00:00]} 41. Rg1 {[%emt 0:00:04]} g5 {[%emt 0:00:04]} 42. Rh1 {[%emt 0:00:01]} f4 {[%emt 0:00:22]} 43. Ra6 {[%emt 0:00:03]} f3 {[%emt 0:00:02]} 44. Re6 {[%emt 0:00:02]} Nxc3 {[%emt 0:00:31]} 45. bxc3 {[%emt 0:00:00]} Rc8 {[%emt 0:00:22]} 46. Kd3 {[%emt 0:00:05]} Rd5 {[%emt 0:00:01]} 47. Nd6 {[%emt 0:00:01]} Nc5+ {[%emt 0:00:02]} 48. Kc4 {[%emt 0:00:00]} Rxd6 {[%emt 0:00:06]} 49. Rxd6 {[%emt 0:00:04]} Ne4+ {[%emt 0:00:01]} 50. Kd5 {[%emt 0:00:00]} Nxd6 {[%emt 0:00:01]} 51. Kxd6 {[%emt 0:00:00]} f2 {[%emt 0:00:05]} 52. Rf1 {[%emt 0:00:05]} Rf8 {[%emt 0:00:01]} 0-1

[Event "CCT Julius Baer-D1 2024"]
[Site "Online"]
[Date "2024.09.27"]
[Round "1"]
[White "Firouzja, Alireza"]
[Black "Fedoseev, Vladimir"]
[Result "1-0"]
[ECO "D52"]
[WhiteElo "2767"]
[BlackElo "2692"]
[Annotator "TA"]
[PlyCount "91"]
[EventDate "2024.09.25"]
[EventType "swiss"]
[EventCountry "NET"]
[SourceTitle "playchess.com"]
[Source "ChessBase"]
[SourceQuality "1"]
[TimeControl "600+2"]

{[%evp 18,91,16,14,33,22,17,7,34,27,53,0,1,0,5,16,45,0,25,33,39,43,17,40,37,33,70,66,54,43,56,52,47,33,43,33,70,114,112,94,93,86,137,134,143,143,221,188,228,187,208,228,362,362,599,610,603,614,589,589,708,629,801,111,857,826,863,869,851,831,1375,1435,2243,2304,2398,2080]} 1. d4 {[%emt 0:00:02]} d5 {[%emt 0:00:06]} 2. c4 {[%emt 0:00:01]} c6 {[%emt 0:00:01]} 3. Nf3 {[%emt 0:00:02]} Nf6 {[%emt 0:00:08]} 4. Nc3 {[%emt 0:00:01]} e6 {[%emt 0:00:03]} 5. Bg5 {[%emt 0:00:01]} Nbd7 {[%emt 0:00:19]} 6. e3 {[%emt 0:00:12]} Qa5 {[%emt 0:00:09]} 7. cxd5 {[%emt 0:00:17]} Nxd5 {[%emt 0:00:25]} 8. Qd2 {[%emt 0:00:03]} Bb4 {[%emt 0:00:52]} 9. Rc1 {[%emt 0:00:01]} h6 {[%emt 0:00:24]} 10. Bh4 {[%emt 0:00:04]} O-O {[%emt 0:00:11][%cal Oe6e5]} 11. a3 {[%emt 0:00:49]} Bxc3 {[%emt 0:01:09]} 12. bxc3 {[%emt 0:00:02]} N5f6 {[%emt 0:00:09][%cal Bd5f6,Bf6h5,Bh5f4][%mdl 32] The position is equal.} 13. Bd3 {[%emt 0:00:14]} b6 {[%emt 0:00:04]} 14. e4 {[%emt 0:00:31]} (14. Qe2 $1 $14) 14... Ba6 $11 {[%emt 0:00:07]} 15. c4 {[%emt 0:00:01]} Qxd2+ {[%emt 0:01:04]} 16. Kxd2 {[%emt 0:00:00]} Rfe8 {[%emt 0:00:14]} 17. e5 {[%emt 0:00:20]} Nh5 {[%emt 0:00:02]} 18. Be4 {[%emt 0:00:14]} Rac8 {[%emt 0:00:02]} 19. g4 {[%emt 0:00:23]} Nf4 {[%emt 0:00:06]} 20. Bg3 {[%emt 0:00:02]} Ng6 {[%emt 0:00:33]} 21. Rhe1 $1 {[%emt 0:00:02]} c5 {[%emt 0:00:15]} 22. d5 $36 {[%emt 0:00:04][%mdl 2048] Black is under pressure.} exd5 {[%emt 0:00:01]} 23. cxd5 {[%emt 0:00:13][%cal Oe5e6]} Rcd8 {[%emt 0:00:35]} (23... Ndxe5 24. Bxe5 Nxe5 25. Nxe5 Rxe5 26. Bh7+ Kxh7 27. Rxe5 $11) (23... Ngxe5 24. Nxe5 Nxe5 25. Bxe5 Rxe5 26. Bh7+ Kxh7 27. Rxe5 $16) 24. Kc3 {[%emt 0:00:11]} Bb7 {[%emt 0:00:13]} (24... Ndxe5 25. Nxe5 Nxe5 26. Bxe5 Rxe5 27. Bh7+ Kxh7 28. Rxe5 $16) 25. a4 {[%emt 0:00:23]} Ndf8 {[%emt 0:00:48]} (25... Ndxe5 26. Nxe5 Nxe5 27. Bxe5 Rxe5 28. Bh7+ Kxh7 29. Rxe5 $16) 26. Rcd1 {[%emt 0:00:09]} Ne7 {[%emt 0:00:02]} 27. d6 {[%emt 0:00:06]} Bxe4 {[%emt 0:00:02]} 28. Rxe4 {[%emt 0:00:22]} Nc6 {[%emt 0:00:01]} 29. Nh4 $1 {[%emt 0:00:07] White has more active pieces.} f6 {[%emt 0:00:10]} (29... g6 $142) 30. f4 $16 {[%emt 0:00:15]} fxe5 {[%emt 0:00:11]} 31. fxe5 {[%emt 0:00:01]} Re6 {[%emt 0:00:12]} (31... Rd7 $16 {was called for.} 32. Re3 Ne6) 32. Kc4 {[%emt 0:00:56]} Rde8 {[%emt 0:00:02]} 33. Nf5 $1 {[%emt 0:00:15]} (33. Kd5 Nb4+ 34. Kc4 Kf7) 33... Nd7 {[%emt 0:00:16][%cal Og8f7]} 34. Rde1 $1 {[%emt 0:00:24]} a6 {[%emt 0:00:16]} (34... Ncxe5+ $2 {loses.} 35. Bxe5 Kf7 36. Kd5 $18) (34... a5 $142 35. h4 (35. Kb5 Rc8 $16) 35... Na7 36. Ne7+ R8xe7) 35. Kd5 $18 {[%emt 0:00:24]} Nb4+ {[%emt 0:00:12] [#]} (35... Nd8 36. Rf1 (36. Ne7+ R6xe7 37. dxe7 Rxe7 $18) 36... Nf8) 36. Rxb4 $1 {[%emt 0:00:01][%mdl 512]} cxb4 {[%emt 0:00:01]} 37. Nd4 {[%emt 0:00:03]} Rg6 {[%emt 0:00:40]} 38. e6 {[%emt 0:00:01]} Nf6+ {[%emt 0:00:07] [#]} 39. Kc6 $1 {[%emt 0:00:01]} Rxg4 {[%emt 0:00:13]} 40. d7 $2 {[%emt 0:00:02]} (40. Be5 $18 {[%cal Oe5f6] is the precise move to win. Hoping for Bxf6!} Rc8+ 41. Kb7) 40... Rd8 $2 {[%emt 0:00:06][%mdl 8192] Black cannot hold the game after this.} (40... Rxd4 $16 41. dxe8=B (41. dxe8=R+ Nxe8 42. Be5 Rd2 $16) 41... Nxe8) 41. Be5 {[%emt 0:00:12][%cal Oe5f6] White wants to mate with Bxf6! White is clearly winning.} Nxd7 {[%emt 0:00:33]} 42. exd7 {[%emt 0:00:03]} b3 {[%emt 0:00:01][%cal Bb4b3,Bb3b2][%mdl 32]} 43. Kc7 {[%emt 0:00:11]} Rxd7+ {[%emt 0:00:00]} 44. Kxd7 {[%emt 0:00:01]} b2 {[%emt 0:00:01]} 45. Rb1 {[%emt 0:00:03]} Re4 {[%emt 0:00:13]} 46. Kd6 {[%emt 0:00:01] Weighted Error Value: White=0.27 (precise) /Black=0.41.  Mistake:       	White=1     	Black=4      Inaccurate:     	White=1     	Black=5      OK:         	White=10    	Black=12     Best:        	White=2     	Black=1      Strong:       	White=3     	---        Brilliant:      	White=1     	---} 1-0

[Event "CCT Julius Baer-D1 2024"]
[Site "Online"]
[Date "2024.09.27"]
[Round "1"]
[White "Nepomniachtchi, Ian"]
[Black "Carlsen, Magnus"]
[Result "0-1"]
[ECO "A28"]
[WhiteElo "2755"]
[BlackElo "2832"]
[Annotator "TA"]
[PlyCount "62"]
[EventDate "2024.09.25"]
[EventType "swiss"]
[EventCountry "NET"]
[SourceTitle "playchess.com"]
[Source "ChessBase"]
[SourceQuality "1"]
[TimeControl "600+2"]

{[%evp 14,62,20,17,27,0,0,0,18,7,15,0,0,-20,-19,-16,-22,-29,-19,-24,-20,-38,-35,-19,0,0,120,113,119,123,137,121,110,120,110,136,202,23,78,-489,-480,-486,-485,-581,-555,-577,-552,-1161,-1108,-29992,-29993]} 1. c4 {[%emt 0:00:05]} e5 {[%emt 0:02:39]} 2. Nc3 {[%emt 0:00:04]} Nf6 {[%emt 0:00:04]} 3. Nf3 {[%emt 0:00:03]} Nc6 {[%emt 0:00:03]} 4. e3 {[%emt 0:00:02]} d5 {[%emt 0:00:04]} 5. cxd5 {[%emt 0:00:09]} Nxd5 {[%emt 0:00:02]} 6. Bb5 {[%emt 0:00:03]} Nxc3 {[%emt 0:00:04]} 7. bxc3 {[%emt 0:00:03]} Bd6 {[%emt 0:00:02]} 8. d4 {[%emt 0:00:04][%cal Bd2d4,Bd4d5][%mdl 32]} Qf6 {[%emt 0:00:04]} 9. d5 {[%emt 0:02:05]} a6 $1 {[%emt 0:00:03]} 10. Be2 {[%emt 0:00:26]} Nb8 {[%emt 0:00:21] The position is equal.} 11. O-O {[%emt 0:00:09]} Nd7 {[%emt 0:00:03]} 12. c4 {[%emt 0:00:06]} O-O {[%emt 0:00:14]} (12... e4 $5 13. Nd4 $8 O-O $11) 13. Bb2 {[%emt 0:00:03]} Nc5 {[%emt 0:00:03]} 14. Nd2 {[%emt 0:00:07]} Qg6 {[%emt 0:00:08]} 15. Kh1 {[%emt 0:00:10]} Bf5 {[%emt 0:00:10]} 16. Rc1 {[%emt 0:00:17]} b6 {[%emt 0:00:47]} 17. f3 {[%emt 0:00:17][%cal Bf2f3,Bf3f4][%mdl 32]} Bd7 {[%emt 0:00:07]} 18. e4 {[%emt 0:00:08]} f5 {[%emt 0:00:07][%cal Rf5e4]} 19. f4 $1 {[%emt 0:00:14]} Rae8 {[%emt 0:00:18]} (19... Nxe4 $6 20. fxe5 (20. Bxe5 Ba4 $11) 20... Bc5 21. Nxe4 fxe4 22. e6 Rxf1+ 23. Bxf1 $16) (19... exf4 $6 20. e5 $16) (19... fxe4 $11 {remains equal.} 20. fxe5 Be7) 20. Bh5 $16 {[%emt 0:00:06]} Qh6 {[%emt 0:00:06]} 21. Bxe8 {[%emt 0:00:04]} Rxe8 {[%emt 0:00:03]} 22. fxe5 {[%emt 0:00:09]} Rxe5 {[%emt 0:00:06]} 23. Bxe5 {[%emt 0:00:09]} Bxe5 {[%emt 0:00:03]} 24. Nf3 {[%emt 0:00:05]} (24. exf5 $2 Qxh2#) 24... Bf4 {[%emt 0:00:03] [#]} (24... Ba4 $16 25. Rc2 Nxe4) 25. e5 $2 {[%emt 0:00:26]} Ne4 {[%emt 0:00:03] [#]} (25... Ba4 $1 $11 26. Qd4 Bxc1) 26. Qe1 $2 {[%emt 0:01:23][%mdl 8192] This move loses the game for White.} Ng3+ $19 {[%emt 0:00:47]} 27. Kg1 {[%emt 0:00:03]} Nxf1 {[%emt 0:00:03]} 28. e6 {[%emt 0:00:28]} Be8 {[%emt 0:00:03][%cal Rf1h2]} (28... Bxc1 $2 {loses.} 29. exd7 (29. Qxf1 $2 {too greedy.} Be8 $19) 29... Be3+ 30. Kxf1 $18) 29. Rc3 {[%emt 0:00:10]} Nxh2 {[%emt 0:00:06]} 30. Ra3 {[%emt 0:00:55]} Bd6 {[%emt 0:00:15] Hoping for ...Bc5+.} 31. Rxa6 {[%emt 0:00:15]} Bc5+ {[%emt 0:00:04] Weighted Error Value: White=0.99/Black=0.20 (precise) .  Loses game:     	White=1     	---        Missed win:     	White=1     	---        Mistake:       	---       	Black=3      Inaccurate:     	White=3     	---        OK:         	White=4     	Black=8      Best:        	White=1     	Black=1      Strong:       	White=1     	Black=1} 0-1